bitfinex/quotes_SOLUSD_20250708
["timestamp","ask_amount","ask_price","bid_price","bid_amount"]
[1751997006941,1e-08,152.22,152.21,56.28269298]
[1751997007143,1e-08,152.22,152.21,45.30663591]
[1751997007442,1e-08,152.22,152.21,84.08617092]
[1751997007642,1e-08,152.22,152.21,18.64964886]
[1751997007830,1e-08,152.22,152.21,52.24964886]
[1751997008346,1e-08,152.22,152.21,58.06617092]
[1751997008524,1e-08,152.22,152.21,64.63604149]
[1751997009634,1e-08,152.22,152.21,58.81951943]
[1751997009838,1e-08,152.22,152.21,64.63604149]
[1751997011133,1e-08,152.22,152.21,58.81951943]
[1751997011342,1e-08,152.22,152.21,64.63604149]
[1751997011543,1e-08,152.22,152.18,147.92791431]
[1751997011544,5.81652207,152.22,152.19,18.64964886]
[1751997011728,5.81652206,152.2,152.19,33.6]
[1751997011931,1e-08,152.22,152.19,33.6]
[1751997012136,5.81652206,152.2,152.17,18.64964886]
[1751997012453,5.81652206,152.18,152.14,5.81652206]
[1751997012755,5.81652206,152.18,152.15,52.24964886]
[1751997012949,5.81652206,152.19,152.15,52.24964886]
[1751997013152,5.81652206,152.19,152.16,33.6]
[1751997013355,5.81652206,152.17,152.11,1.6441]
[1751997013659,7.35603452,152.19,152.13,18.64964886]
[1751997013859,5.81652206,152.18,152.15,18.64964886]
[1751997014071,5.81652206,152.18,152.15,52.24964886]
[1751997014756,5.81652206,152.18,152.15,58.82207586]
[1751997015538,6.57059299,152.2,152.15,58.82207586]
[1751997015741,5.81652206,152.18,152.15,58.82207586]
[1751997015952,22.99406178,152.22,152.15,58.82207586]
[1751997016156,5.81652206,152.18,152.15,58.82207586]
[1751997019561,6.57002449,152.21,152.15,58.82207586]
[1751997019738,5.81652206,152.19,152.15,58.82207586]
[1751997020062,5.81652206,152.19,152.15,64.63859792]
[1751997020462,13.17792851,152.2,152.16,5.81652206]
[1751997020649,5.81652206,152.2,152.17,33.6]
[1751997020844,7.36088462,152.21,152.17,33.6]
[1751997021058,5.81652206,152.2,152.17,33.6]
[1751997021439,5.81652206,152.2,152.17,40.1715673]
[1751997022844,1e-08,152.22,152.18,24.46617092]
[1751997023044,7.36088899,152.22,152.19,33.6]
[1751997023243,7.36088899,152.22,152.2,5.81652206]
[1751997023584,1e-08,152.22,152.21,6.56987057]
[1751997023772,1e-08,152.22,152.2,12.38666509]
[1751997023953,1e-08,152.22,152.21,33.6]
[1751997024752,1e-08,152.22,152.15,6.57230421]
[1751997024753,12.38600126,152.22,152.15,6.57230421]
[1751997025059,5.81652206,152.18,152.13,24.46617092]
[1751997025270,5.81652206,152.18,152.15,18.64964886]
[1751997025768,5.81652206,152.18,152.15,52.24964886]
[1751997026083,7.36394409,152.19,152.15,52.24964886]
[1751997026370,5.81652206,152.18,152.15,58.82199549]
[1751997026570,5.81652206,152.18,152.15,52.24964886]
[1751997029167,12.38774126,152.18,152.15,52.24964886]
[1751997029372,5.81652206,152.16,152.14,33.6]
[1751997036000,5.81652206,152.16,152.13,6.57327309]
[1751997036284,5.81652206,152.16,152.14,33.6]
[1751997036868,6.57030223,152.2,152.15,5.81652206]
[1751997037189,5.81652206,152.2,152.16,39.41652206]
[1751997037360,5.81652206,152.2,152.16,33.6]
[1751997038102,12.38686786,152.2,152.16,33.6]
[1751997038890,5.81652206,152.2,152.16,40.17186252]
[1751997039569,12.38683113,152.2,152.16,40.17186252]
[1751997039770,6.57030907,152.2,152.16,33.6]
[1751997039972,5.81652206,152.17,152.16,33.6]
[1751997040172,5.81652206,152.18,152.16,33.6]
[1751997041686,5.81652206,152.18,152.14,12.3893208]
[1751997041888,5.81652206,152.18,152.15,33.6]
[1751997042186,7.36813398,152.19,152.15,33.6]
[1751997042389,5.81652206,152.18,152.15,33.6]
[1751997044189,6.57086726,152.19,152.15,33.6]
[1751997044393,5.81652206,152.18,152.15,33.6]
[1751997045594,6.57030223,152.2,152.15,33.6]
[1751997045801,5.81652206,152.18,152.15,33.6]
[1751997046600,5.81652206,152.18,152.15,40.17243584]
[1751997046899,7.36866815,152.19,152.15,45.9889579]
[1751997047114,147.5,152.21,152.16,5.81652206]
[1751997047316,7.36839686,152.2,152.17,24.46617092]
[1751997047476,147.5,152.21,152.18,12.38749123]
[1751997047801,5.81652207,152.22,152.18,12.38749123]
[1751997047980,5.81652207,152.22,152.18,6.57096917]
[1751997048173,5.81652207,152.22,152.18,12.38749123]
[1751997049116,13.18390441,152.22,152.18,12.38749123]
[1751997049902,5.81652206,152.21,152.18,6.57096917]
[1751997050104,5.81652206,152.19,152.1,1.6121]
[1751997050412,7.36738234,152.21,152.13,18.64964886]
[1751997050413,5.81652206,152.16,152.13,18.64964886]
[1751997050594,5.81652206,152.16,152.13,52.24964886]
[1751997051118,5.81652206,152.16,152.13,58.82278683]
[1751997051284,6.57120624,152.18,152.13,58.82278683]
[1751997051488,5.81652206,152.16,152.13,58.82278683]
[1751997051715,5.81652206,152.16,152.13,25.22278683]
[1751997051885,6.57120624,152.18,152.13,58.82278683]
[1751997052203,5.81652206,152.16,152.13,58.82278683]
[1751997053096,5.81652206,152.16,152.15,0.03]
[1751997053686,13.18682035,152.17,152.15,0.03]
[1751997053903,5.81652206,152.17,152.15,0.03]
[1751997054304,13.19187408,152.17,152.15,0.03]
[1751997054490,5.81652206,152.17,152.15,0.03]
[1751997054999,13.19395657,152.17,152.15,0.03]
[1751997055216,5.81652206,152.16,152.15,0.03]
[1751997056483,13.1968781,152.16,152.15,0.03]
[1751997056683,5.81652206,152.16,152.15,0.03]
[1751997057217,13.20099171,152.17,152.15,0.03]
[1751997057414,5.81652206,152.17,152.15,0.03]
[1751997060384,5.81652206,152.19,152.15,5.84652206]
[1751997060625,7.38495729,152.18,152.15,5.84652206]
[1751997061433,7.38495729,152.18,152.17,5.81652206]
[1751997061597,153.31652206,152.21,152.17,33.6]
[1751997061797,7.38285174,152.2,152.17,39.41652206]
[1751997062007,153.31652206,152.21,152.17,39.41652206]
[1751997062298,7.38296295,152.2,152.17,39.41652206]
[1751997062494,147.5,152.21,152.17,39.41652206]
[1751997062695,7.38247715,152.2,152.17,39.41652206]
[1751997063520,147.5,152.21,152.18,12.3873165]
[1751997064421,1e-08,152.22,152.19,39.41652206]
[1751997064724,7.3795386,152.21,152.19,39.41652206]
[1751997065193,1e-08,152.22,152.2,5.81652206]
[1751997065389,1e-08,152.22,152.2,12.38641686]
[1751997065714,7.37868009,152.22,152.2,25.21954366]
[1751997066304,7.37868009,152.22,152.19,40.17061578]
[1751997067021,7.37868009,152.22,152.19,33.6]
[1751997067322,13.19520215,152.22,152.19,33.6]
[1751997067519,13.19520215,152.22,152.19,40.17070958]
[1751997068394,13.19520215,152.22,152.19,6.57070958]
[1751997068814,7.37868008,152.21,152.19,6.57070958]
[1751997069016,7.37868008,152.21,152.19,12.38723164]
[1751997069326,1e-08,152.22,152.19,6.57070958]
[1751997069524,1e-08,152.22,152.2,5.81652206]
[1751997070107,1e-08,152.22,152.21,5.81652206]
[1751997070622,1e-08,152.22,152.21,12.38639263]
[1751997071503,1e-08,152.22,152.21,6.56987057]
[1751997072810,1e-08,152.22,152.2,40.17014938]
[1751997073409,1e-08,152.22,152.2,45.98667144]
[1751997074923,1e-08,152.22,152.2,40.17014938]
[1751997075124,1e-08,152.22,152.2,45.98667144]
[1751997076312,1e-08,152.22,152.21,12.38639263]
[1751997076511,1e-08,152.22,152.21,6.56987057]
[1751997077328,1e-08,152.22,152.2,39.41652206]
[1751997077329,1e-08,152.22,152.2,33.6]
[1751997077718,1e-08,152.22,152.2,40.17027156]
[1751997077919,1e-08,152.22,152.2,45.98679362]
[1751997079202,0.22434501,152.21,152.2,45.98679362]
[1751997079407,0.22434501,152.21,152.2,64.63644248]
[1751997084338,0.22434501,152.21,152.18,6.57076438]
[1751997084511,0.22434501,152.21,152.19,33.58]
[1751997085636,0.22434501,152.21,152.19,40.15068132]
[1751997088055,0.22434501,152.21,152.2,24.46617092]
[1751997089949,0.22434501,152.21,152.2,31.03647315]
[1751997090124,0.22434501,152.21,152.2,25.21995109]
[1751997090327,0.22434501,152.21,152.2,31.03647315]
[1751997093258,0.22434501,152.21,152.2,25.21995109]
[1751997093464,0.22434501,152.21,152.2,31.03647315]
[1751997095765,1e-08,152.22,152.21,20.22144886]
[1751997095938,147.5,152.3,152.25,18.64964886]
[1751997096145,147.5,152.3,152.27,5.81652206]
[1751997096339,147.5,152.3,152.28,39.41652206]
[1751997096538,4.0909864,152.31,152.29,5.81652206]
[1751997096852,4.0909864,152.31,152.28,45.98316056]
[1751997097373,4.0909864,152.31,152.29,18.64964886]
[1751997099064,5.81652206,152.3,152.25,33.6]
[1751997099250,5.81652206,152.28,152.25,33.6]
[1751997099452,5.81652206,152.28,152.24,5.81652206]
[1751997099651,5.81652206,152.28,152.25,33.6]
[1751997100468,5.81652206,152.3,152.26,24.46617092]
[1751997100854,5.81652206,152.3,152.27,33.6]
[1751997101178,16.47318589,152.31,152.27,33.6]
[1751997102256,16.47318589,152.31,152.27,39.41652206]
[1751997103678,10.65666383,152.31,152.27,33.6]
[1751997103875,16.47318589,152.31,152.27,39.41652206]
[1751997106162,16.47318589,152.31,152.27,39.41652206]
[1751997106989,10.65666383,152.31,152.27,39.41652206]
[1751997107174,16.47318589,152.31,152.27,39.39652206]
[1751997108589,10.65666383,152.31,152.27,33.58]
[1751997108795,16.47318589,152.31,152.27,39.39652206]
[1751997108961,16.47318589,152.31,152.27,33.58]
[1751997109273,10.65666383,152.31,152.27,33.58]
[1751997109670,16.47318589,152.31,152.27,33.58]
[1751997110792,5.81652206,152.3,152.27,33.58]
[1751997111291,6.56641933,152.29,152.21,1.5718]
[1751997111488,5.81652206,152.28,152.24,24.46617092]
[1751997111701,5.81652206,152.28,152.24,58.04617092]
[1751997112200,6.56641933,152.29,152.26,5.81652206]
[1751997112689,6.56641933,152.29,152.24,52.22964886]
[1751997112868,6.56641933,152.29,152.26,5.81652206]
[1751997114590,6.56641933,152.29,152.26,39.39652206]
[1751997114772,6.56641933,152.29,152.26,33.58]
[1751997114974,6.56641933,152.29,152.26,39.39652206]
[1751997115296,12.38266718,152.3,152.26,39.39652206]
[1751997115472,6.56614512,152.3,152.26,39.39652206]
[1751997115670,12.38266718,152.3,152.26,39.39652206]
[1751997115873,10.65661006,152.31,152.27,5.81652206]
[1751997116885,10.65661006,152.31,152.28,5.81652206]
[1751997117209,4.0909864,152.31,152.27,18.64964886]
[1751997117486,16.47325874,152.31,152.27,24.46617092]
[1751997117879,5.81652206,152.3,152.27,18.64964886]
[1751997118076,5.81652206,152.3,152.26,39.39652206]
[1751997118695,6.5662315,152.3,152.27,5.81652206]
[1751997120091,6.5662315,152.3,152.26,33.58]
[1751997120292,6.5662315,152.3,152.27,5.81652206]
[1751997120871,6.5662315,152.3,152.26,33.58]
[1751997121070,6.5662315,152.3,152.27,5.81652206]
[1751997122198,6.5662315,152.3,152.26,33.58]
[1751997122703,6.5662315,152.3,152.26,39.39652206]
[1751997122876,6.5662315,152.3,152.26,39.49652206]
[1751997123707,12.38275356,152.3,152.26,33.68]
[1751997123901,12.38275356,152.3,152.26,39.49652206]
[1751997124379,6.5662315,152.3,152.26,33.68]
[1751997124581,6.5662315,152.3,152.26,39.49652206]
[1751997124889,4.0909864,152.31,152.27,18.64964886]
[1751997125128,4.0909864,152.31,152.27,44.64964886]
[1751997125418,4.0909864,152.31,152.3,18.64964886]
[1751997125613,4.0909864,152.31,152.3,33.84]
[1751997125820,4.0909864,152.31,152.28,52.56964886]
[1751997126031,4.0909864,152.31,152.27,26.0]
[1751997126032,5.81652206,152.3,152.27,26.0]
[1751997126329,10.65654348,152.31,152.27,33.96]
[1751997126700,5.81652206,152.3,152.27,33.96]
[1751997127037,10.65654348,152.31,152.22,1.6461]
[1751997127038,5.81652206,152.28,152.22,1.6461]
[1751997127336,5.81652206,152.26,152.19,25.25032834]
[1751997127534,5.81652206,152.26,152.22,18.64964886]
[1751997128039,22.98246765,152.29,152.21,5.81652206]
[1751997128213,5.81652206,152.25,152.21,40.13652206]
[1751997128414,22.98246765,152.29,152.19,6.60071653]
[1751997128619,5.81652206,152.24,152.21,18.64964886]
[1751997128816,12.38562837,152.23,152.2,34.32]
[1751997129029,6.56910631,152.23,152.19,0.03]
[1751997129338,5.81652206,152.22,152.19,0.03]
[1751997129643,1.5497,152.29,152.21,5.81652206]
[1751997129807,6.56685053,152.28,152.2,18.64964886]
[1751997130005,6.56685053,152.28,152.23,5.81652206]
[1751997130508,12.38337259,152.28,152.24,5.81652206]
[1751997130743,6.56685053,152.28,152.2,18.64964886]
[1751997130907,6.56685053,152.28,152.23,18.64964886]
[1751997131110,6.56685053,152.28,152.24,5.81652206]
[1751997131319,8.1162359,152.29,152.23,18.64964886]
[1751997131512,38.4909864,152.31,152.23,18.64964886]
[1751997131513,10.65665595,152.31,152.23,18.64964886]
[1751997131716,10.65665595,152.31,152.27,5.81652206]
[1751997132145,4.0909864,152.31,152.26,18.64964886]
[1751997132433,16.47313126,152.31,152.26,18.64964886]
[1751997132602,10.6566092,152.31,152.27,5.81652206]
[1751997132807,16.47313126,152.31,152.26,18.64964886]
[1751997133004,13.97313126,152.31,152.27,5.81652206]
[1751997133317,13.97313126,152.31,152.26,18.64964886]
[1751997133514,8.1566092,152.31,152.26,18.64964886]
[1751997133715,8.1566092,152.31,152.27,5.81652206]
[1751997133908,13.97313126,152.31,152.27,5.81652206]
[1751997134121,8.1566092,152.31,152.27,5.81652206]
[1751997134433,1.5909864,152.31,152.26,25.2173459]
[1751997134734,1.5909864,152.31,152.29,5.81652206]
[1751997135612,1.5909864,152.31,152.26,25.21728754]
[1751997135613,1.5909864,152.31,152.28,5.81652206]
[1751997137316,1.5909864,152.31,152.27,25.21681015]
[1751997137831,1.5909864,152.31,152.29,5.81652206]
[1751997138229,1.5909864,152.31,152.27,25.21681015]
[1751997138418,1.5909864,152.31,152.29,5.81652206]
[1751997138615,1.5909864,152.31,152.27,18.64964886]
[1751997138832,5.81652206,152.3,152.26,59.78617092]
[1751997139014,5.81652206,152.29,152.26,53.96964886]
[1751997139208,6.5662649,152.3,152.26,53.96964886]
[1751997139410,5.81652206,152.29,152.26,53.96964886]
[1751997139725,6.5662649,152.3,152.26,18.64964886]
[1751997139926,5.81652206,152.29,152.26,18.64964886]
[1751997140709,6.5662649,152.3,152.26,18.64964886]
[1751997140909,12.38278696,152.3,152.26,18.64964886]
[1751997141246,12.38278696,152.3,152.26,24.46617092]
[1751997142233,6.5662649,152.3,152.26,24.46617092]
[1751997142410,12.38278696,152.3,152.26,18.64964886]
[1751997142607,6.5662649,152.3,152.26,18.64964886]
[1751997142826,12.38278696,152.3,152.26,24.46617092]
[1751997143634,6.5662649,152.3,152.26,24.46617092]
[1751997143932,6.5662649,152.3,152.26,18.64964886]
[1751997144232,6.5662649,152.3,152.26,53.92964886]
[1751997144436,6.5662649,152.3,152.26,59.74617092]
[1751997144911,12.38278696,152.3,152.26,59.74617092]
[1751997145421,1.5909864,152.31,152.27,5.81652206]
[1751997145422,13.97314305,152.31,152.27,5.81652206]
[1751997145621,8.15662099,152.31,152.26,60.49728008]
[1751997145830,13.97314305,152.31,152.27,5.81652206]
[1751997146052,13.97314305,152.31,152.26,53.92964886]
[1751997146218,13.97314305,152.31,152.26,59.74617092]
[1751997146819,13.97314305,152.31,152.27,5.81652206]
[1751997147339,5.81652206,152.3,152.26,59.74617092]
[1751997147845,12.38270828,152.3,152.26,59.74617092]
[1751997148039,12.38270828,152.3,152.23,26.0]
[1751997148040,5.81652206,152.29,152.23,26.0]
[1751997148241,5.81652206,152.28,152.24,18.64964886]
[1751997148545,5.81652206,152.28,152.24,59.66617092]
[1751997148914,5.81652206,152.28,152.24,5.81652206]
[1751997149147,5.81652206,152.27,152.23,18.64964886]
[1751997149365,48.98115667,152.3,152.22,0.03]
[1751997149658,5.81652206,152.23,152.22,0.03]
[1751997149820,5.81652206,152.26,152.22,0.03]
[1751997150151,5.81652206,152.26,152.22,18.67964886]
[1751997150317,5.81652206,152.26,152.22,24.49617092]
[1751997150944,5.81652206,152.28,152.23,12.38533558]
[1751997151149,5.81652206,152.28,152.24,5.81652206]
[1751997151830,6.56641933,152.29,152.24,5.81652206]
[1751997152030,12.38342444,152.28,152.24,5.81652206]
[1751997152732,12.38342444,152.28,152.23,47.80533558]
[1751997152925,6.56690238,152.28,152.23,47.80533558]
[1751997153130,12.38342444,152.28,152.24,5.81652206]
[1751997153549,5.81652206,152.28,152.24,5.81652206]
[1751997153736,12.38311245,152.29,152.24,5.81652206]
[1751997154335,12.38311245,152.29,152.24,18.64964886]
[1751997154523,6.56659039,152.29,152.24,24.46617092]
[1751997154823,12.38263731,152.3,152.25,5.81652206]
[1751997155016,12.38263731,152.3,152.26,5.81652206]
[1751997155220,1.5909864,152.31,152.27,18.64964886]
[1751997155413,1.5909864,152.31,152.28,5.81652206]
[1751997155638,1.5909864,152.31,152.25,18.64964886]
[1751997155846,5.81652206,152.29,152.25,18.64964886]
[1751997156138,5.81652206,152.28,152.25,18.64964886]
[1751997156640,5.81652206,152.29,152.25,24.46617092]
[1751997156940,5.81652206,152.29,152.25,31.03428653]
[1751997157443,5.81652206,152.29,152.25,25.21776447]
[1751997157641,6.56598818,152.3,152.25,31.03428653]
[1751997158144,12.38251024,152.3,152.26,5.81652206]
[1751997159217,6.56598818,152.3,152.26,5.81652206]
[1751997159420,5.81652206,152.29,152.25,31.03428653]
[1751997160547,6.56598818,152.3,152.25,31.03428653]
[1751997160845,12.38251024,152.3,152.25,31.03428653]
[1751997161343,6.56598818,152.3,152.25,31.03428653]
[1751997161549,12.38251024,152.3,152.26,5.81652206]
[1751997162252,1.5909864,152.31,152.26,12.38423344]
[1751997162457,1.5909864,152.31,152.28,24.46617092]
[1751997164159,1.5909864,152.31,152.28,31.03301586]
[1751997165150,1.5909864,152.31,152.28,31.03301871]
[1751997166036,1.5909864,152.31,152.28,25.21649665]
[1751997166438,1.5909864,152.31,152.28,31.03301871]
[1751997166640,1.5909864,152.31,152.28,24.46617092]
[1751997167249,1.5909864,152.31,152.28,18.64964886]
[1751997167454,1.5909864,152.31,152.28,24.46617092]
[1751997169958,1.5909864,152.31,152.29,35.32]
[1751997170356,8.15657355,152.31,152.29,35.32]
[1751997170861,8.15655614,152.31,152.29,35.32]
[1751997172765,1.5909864,152.31,152.29,35.32]
[1751997173771,8.15654461,152.31,152.29,35.32]
[1751997174850,1.5909864,152.31,152.29,35.32]
[1751997176147,1.5909864,152.31,152.29,41.13652206]
[1751997176671,1.5909864,152.31,152.29,35.32]
[1751997177270,1.5909864,152.31,152.29,41.13652206]
[1751997177945,1.5909864,152.31,152.29,35.32]
[1751997179336,1.5909864,152.31,152.3,18.64964886]
[1751997179537,1.5909864,152.31,152.3,24.46617092]
[1751997179767,1.5909864,152.31,152.3,18.64964886]
[1751997180069,1.5909864,152.31,152.3,24.46617092]
[1751997180275,1.5909864,152.31,152.3,31.0321591]
[1751997180752,1.5909864,152.31,152.28,7.7851]
[1751997181071,1.5909864,152.31,152.3,24.46617092]
[1751997182374,1.5909864,152.31,152.3,31.0321591]
[1751997183253,1.5909864,152.31,152.3,25.21563704]
[1751997183462,1.5909864,152.31,152.3,31.0321591]
[1751997183666,1.5909864,152.31,152.3,25.21563704]
[1751997183838,1.5909864,152.31,152.3,31.0321591]
[1751997184042,1.5909864,152.31,152.3,18.64964886]
[1751997184241,1.5909864,152.31,152.28,14.35187282]
[1751997184483,1.5909864,152.31,152.3,53.98964886]
[1751997184952,1.5909864,152.31,152.25,6.56814449]
[1751997185152,1.5909864,152.31,152.27,5.81652206]
[1751997185357,1.5909864,152.31,152.29,18.64964886]
[1751997185669,1.5909864,152.31,152.3,35.34]
[1751997187066,1.5909864,152.31,152.28,5.81652206]
[1751997187372,1.5909864,152.31,152.29,54.00964886]
[1751997188162,1.5909864,152.31,152.29,59.82617092]
[1751997188362,1.5909864,152.31,152.3,18.64964886]
[1751997188565,1.5909864,152.31,152.3,24.46617092]
[1751997190371,1.5909864,152.31,152.3,31.0321591]
[1751997194171,1.5909864,152.31,152.3,18.64964886]
[1751997194863,1.5909864,152.31,152.3,54.08964886]
[1751997196566,8.15654348,152.31,152.3,35.44]
[1751997196772,8.15654348,152.31,152.3,35.58]
[1751997197678,1.5909864,152.31,152.3,35.6]
[1751997199294,1.5909864,152.31,152.28,5.81652206]
[1751997199577,1.5909864,152.31,152.29,18.64964886]
[1751997199881,1.5909864,152.31,152.29,54.18964886]
[1751997202575,1.5909864,152.31,152.29,60.00617092]
[1751997202774,1.5909864,152.31,152.3,18.64964886]
[1751997205780,1.5909864,152.31,152.3,54.18964886]
[1751997208470,8.15654348,152.31,152.25,7.7293]
[1751997208682,8.15654348,152.31,152.26,18.64964886]
[1751997208884,5.81652206,152.29,152.25,12.3845819]
[1751997209197,5.81652206,152.3,152.28,18.64964886]
[1751997209365,5.81652206,152.3,152.28,54.34964886]
[1751997210191,8.15654348,152.31,152.28,54.34964886]
[1751997210488,5.81652206,152.3,152.28,54.34964886]
[1751997211392,7.40750846,152.31,152.28,54.34964886]
[1751997212401,13.97311417,152.31,152.28,54.34964886]
[1751997212891,1.5909864,152.31,152.28,54.34964886]
[1751997213079,7.40750846,152.31,152.28,54.34964886]
[1751997213794,1.5909864,152.31,152.28,54.34964886]
[1751997214088,7.40750846,152.31,152.28,54.34964886]
[1751997214290,1.5909864,152.31,152.28,66.73292076]
[1751997214488,1.5909864,152.31,152.28,54.34964886]
[1751997214667,1.5909864,152.31,152.28,60.16617092]
[1751997214988,1.5909864,152.31,152.28,54.34964886]
[1751997215471,1.5909864,152.31,152.28,66.73299087]
[1751997215791,1.5909864,152.31,152.28,60.91646881]
[1751997215990,1.5909864,152.31,152.3,18.64964886]
[1751997216169,1.5909864,152.31,152.3,54.34964886]
[1751997216682,1.5909864,152.31,152.3,66.7321591]
[1751997216989,1.5909864,152.31,152.3,54.34964886]
[1751997228412,1.5909864,152.31,152.3,60.16617092]
[1751997228599,1.5909864,152.31,152.3,66.7321591]
[1751997228984,1.5909864,152.31,152.3,92.7321591]
[1751997232102,1.5909864,152.31,152.3,44.64964886]
[1751997232403,1.5909864,152.31,152.3,86.81563704]
[1751997232702,1.5909864,152.31,152.3,92.6321591]
[1751997233281,1.5909864,152.31,152.3,86.81563704]
[1751997233592,1.5909864,152.31,152.3,92.6321591]
[1751997236607,1.5909864,152.31,152.3,86.81563704]
[1751997236790,1.5909864,152.31,152.3,92.6321591]
[1751997238890,1.5909864,152.31,152.3,57.0321591]
[1751997239092,1.5909864,152.31,152.3,92.5721591]
[1751997240295,1.5909864,152.31,152.3,73.92251024]
[1751997240809,1.5909864,152.31,152.3,92.5721591]
[1751997241106,0.2,152.33,152.32,44.64964886]
[1751997241340,0.2,152.33,152.32,94.06310558]
[1751997242093,0.2,152.33,152.32,88.24658352]
[1751997242303,0.2,152.33,152.32,86.08617092]
[1751997242704,0.2,152.33,152.32,92.65129697]
[1751997243514,0.2,152.33,152.32,51.21477491]
[1751997243693,0.2,152.33,152.3,31.03198738]
[1751997243895,0.2,152.33,152.31,35.68]
[1751997244390,0.2,152.33,152.3,6.56581646]
[1751997244590,0.2,152.33,152.31,35.7]
[1751997244591,6.01652206,152.33,152.31,35.7]
[1751997244825,0.2,152.33,152.29,32.56626827]
[1751997245096,6.01652206,152.33,152.3,35.68]
[1751997245305,0.2,152.33,152.3,41.49652206]
[1751997245495,0.2,152.33,152.3,5.81652206]
[1751997245694,0.2,152.33,152.29,32.56626827]
[1751997245695,6.01652206,152.33,152.29,32.56626827]
[1751997245891,6.01652206,152.33,152.32,44.64964886]
[1751997245892,0.2,152.33,152.32,44.64964886]
[1751997246120,0.2,152.33,152.32,91.94269298]
[1751997246890,0.2,152.33,152.32,86.87477491]
[1751997247108,0.2,152.33,152.32,92.69129697]
[1751997247410,0.2,152.33,152.32,86.87477491]
[1751997247797,0.2,152.33,152.32,92.69129697]
[1751997248204,0.2,152.33,152.32,86.87477491]
[1751997248516,0.2,152.33,152.32,93.91129697]
[1751997248844,0.2,152.33,152.31,5.84652206]
[1751997248997,0.2,152.33,152.32,36.88]
[1751997250594,0.2,152.33,152.32,43.44512605]
[1751997251621,0.2,152.33,152.32,36.88]
[1751997251814,0.2,152.33,152.32,62.09477491]
[1751997252000,0.2,152.33,152.32,67.91129697]
[1751997253730,0.2,152.33,152.32,67.83129697]
[1751997254230,0.2,152.33,152.32,62.01477491]
[1751997254398,0.2,152.33,152.32,93.83129697]
[1751997254840,0.2,152.33,152.32,26.0]
[1751997255125,0.2,152.33,152.32,36.78]
[1751997255327,6.01652206,152.33,152.32,36.78]
[1751997256112,0.2,152.33,152.32,36.76]
[1751997257721,0.2,152.33,152.32,43.32512605]
[1751997258216,0.2,152.33,152.32,36.76]
[1751997258823,0.2,152.33,152.31,0.03]
[1751997259335,0.2,152.33,152.32,36.84]
[1751997260325,7.56635391,152.33,152.32,36.84]
[1751997261016,0.2,152.33,152.32,36.84]
[1751997261318,7.56635391,152.33,152.32,36.84]
[1751997261520,0.2,152.33,152.32,36.84]
[1751997267933,6.01652206,152.33,152.32,36.84]
[1751997268316,12.58121712,152.33,152.31,36.75]
[1751997268625,6.01652206,152.33,152.31,36.75]
[1751997268821,0.2,152.33,152.31,36.75]
[1751997269328,0.2,152.33,152.31,36.77]
[1751997269724,0.2,152.33,152.31,43.33552051]
[1751997270035,0.2,152.33,152.31,49.15204257]
[1751997271438,0.2,152.33,152.32,36.7]
[1751997271605,0.2,152.33,152.32,67.73129697]
[1751997271813,0.2,152.33,152.32,61.91477491]
[1751997272012,0.2,152.33,152.32,67.73129697]
[1751997273128,0.2,152.33,152.32,18.64964886]
[1751997273332,0.2,152.33,152.32,61.12617092]
[1751997273522,0.2,152.33,152.32,67.69129697]
[1751997274552,0.2,152.33,152.32,61.87477491]
[1751997274755,0.2,152.33,152.32,67.69129697]
[1751997275536,0.2,152.33,152.32,61.87477491]
[1751997275741,0.2,152.33,152.32,67.69129697]
[1751997277342,0.2,152.33,152.32,42.47652206]
[1751997277540,0.2,152.33,152.32,36.66]
[1751997278624,12.5812283,152.33,152.31,0.03]
[1751997278816,5.81652206,152.32,152.31,0.03]
[1751997279146,5.81652206,152.32,152.31,36.59]
[1751997280037,12.5812283,152.33,152.31,36.59]
[1751997280744,12.5812283,152.33,152.31,0.03]
[1751997280921,12.5812283,152.33,152.31,36.57]
[1751997281643,5.81652206,152.32,152.31,36.53]
[1751997282236,12.38164811,152.32,152.31,36.53]
[1751997283447,6.56512605,152.32,152.31,36.53]
[1751997283650,12.38164811,152.32,152.31,36.53]
[1751997284324,12.38164811,152.32,152.31,0.03]
[1751997286440,0.2,152.33,152.31,0.03]
[1751997286645,5.81652206,152.32,152.31,0.03]
[1751997287530,12.58130077,152.33,152.31,0.03]
[1751997288458,6.76477871,152.33,152.31,0.03]
[1751997288630,6.01652206,152.33,152.31,0.03]
[1751997289049,0.2,152.33,152.31,0.03]